fUSD/lending_fUSD_20250524
["ID","MTS","AMOUNT","RATE_DAILY","PERIOD"]
[362216798,1748109098606,-420.0,0.00019342,2]
[362216799,1748109098615,-443.46,0.00019342,2]
[362216800,1748109098625,-250.0,0.00019342,2]
[362216801,1748109098635,-420.0,0.00019342,2]
[362216802,1748109098644,-420.0,0.00019342,2]
[362216803,1748109098653,-17506.37,0.00019342,2]
[362216804,1748109098663,-420.0,0.00019342,2]
[362216805,1748109098673,-424.09,0.00019342,2]
[362216806,1748109098683,-420.0,0.00019342,2]
[362216807,1748109098693,-420.0,0.00019342,2]
[362216808,1748109098703,-1778.25,0.00019342,2]
[362216809,1748109098712,-420.0,0.00019342,2]
[362216810,1748109098723,-420.0,0.00019342,2]
[362216811,1748109098733,-420.0,0.00019342,2]
[362216812,1748109098745,-477.32636373,0.00019342,2]
[362216813,1748109098756,-2104.45,0.00019342,2]
[362216814,1748109098767,-414.75468798,0.00019342,2]
[362216815,1748109098776,-1661.53,0.00019342,2]
[362216816,1748109098788,-230.71848106,0.00019342,2]
[362216817,1748109098801,-420.0,0.00019342,2]
[362216818,1748109098812,-420.0,0.00019342,2]
[362216819,1748109098821,-420.0,0.00019342,2]
[362216820,1748109098831,-278.31948872,0.00019342,2]
[362216821,1748109098840,-539.45,0.00019342,2]
[362216822,1748109098849,-420.0,0.00019342,2]
[362216823,1748109098859,-420.0,0.00019342,2]
[362216824,1748109098868,-247177.75,0.00019342,2]
[362216825,1748109098878,-5399.91,0.00019342,2]
[362216826,1748109098888,-420.0,0.00019342,2]
[362216827,1748109098897,-489.06,0.00019342,2]
[362216828,1748109098908,-3466.19,0.00019342,2]
[362216829,1748109098917,-420.0,0.00019342,2]
[362216830,1748109098927,-420.0,0.00019342,2]
[362216831,1748109098936,-420.0,0.00019342,2]
[362216832,1748109098947,-420.0,0.00019342,2]
[362216833,1748109098957,-420.0,0.00019342,2]
[362216834,1748109098966,-3163.06,0.00019342,2]
[362216835,1748109098976,-1653.38,0.00019342,2]
[362216836,1748109098986,-420.0,0.00019342,2]
[362216837,1748109098995,-420.0,0.00019342,2]
[362216838,1748109099006,-420.0,0.00019342,2]
[362216839,1748109099015,-420.0,0.00019342,2]
[362216840,1748109099026,-3018.52,0.00019342,2]
[362216841,1748109099035,-420.0,0.00019342,2]
[362216842,1748109099044,-3197.4,0.00019342,2]
[362216843,1748109099053,-462.46156369,0.00019342,2]
[362216844,1748109099063,-420.0,0.00019342,2]
[362216845,1748109099074,-420.0,0.00019342,2]
[362216846,1748109099083,-508.31,0.00019342,2]
[362216847,1748109099093,-420.0,0.00019342,2]
[362216848,1748109099103,-7674.63,0.00019342,2]
[362216849,1748109099112,-420.0,0.00019342,2]
[362216850,1748109099121,-420.0,0.00019342,2]
[362216851,1748109099130,-420.0,0.00019342,2]
[362216852,1748109099141,-1467.56,0.00019342,2]
[362216853,1748109099150,-377.00922756,0.00019342,2]
[362216854,1748109099159,-420.0,0.00019342,2]
[362216855,1748109099168,-420.0,0.00019342,2]
[362216856,1748109099178,-420.0,0.00019342,2]
[362216857,1748109099188,-734.7,0.00019342,2]
[362216858,1748109099197,-3712.64,0.00019342,2]
[362216859,1748109099207,-420.0,0.00019342,2]
[362216860,1748109099217,-420.0,0.00019342,2]
[362216861,1748109099227,-420.0,0.00019342,2]
[362216862,1748109099237,-420.0,0.00019342,2]
[362216863,1748109099248,-420.0,0.00019342,2]
[362216864,1748109099258,-420.0,0.00019342,2]
[362216865,1748109099267,-420.0,0.00019342,2]
[362216866,1748109099278,-7219.46,0.00019342,2]
[362216867,1748109099289,-420.0,0.00019342,2]
[362216868,1748109099299,-420.0,0.00019342,2]
[362216869,1748109099310,-328.59560976,0.00019342,2]
[362216870,1748109099319,-420.0,0.00019342,2]
[362216871,1748109099330,-420.0,0.00019342,2]
[362216872,1748109099342,-420.0,0.00019342,2]
[362216873,1748109099352,-420.0,0.00019342,2]
[362216874,1748109099362,-1007.27,0.00019342,2]
[362216875,1748109099371,-551.69951042,0.00019342,2]
[362216876,1748109099380,-467.55259645,0.00019342,2]
[362216877,1748109099389,-420.0,0.00019342,2]
[362216878,1748109099399,-420.0,0.00019342,2]
[362216879,1748109099409,-420.0,0.00019342,2]
[362216880,1748109099419,-420.0,0.00019342,2]
[362216881,1748109099429,-420.0,0.00019342,2]
[362216882,1748109099438,-420.0,0.00019342,2]
[362216883,1748109099447,-786.02,0.00019342,2]
[362216884,1748109099456,-322.46163861,0.00019342,2]
[362216885,1748109099465,-420.0,0.00019342,2]
[362216886,1748109099475,-2801.9,0.00019342,2]
[362216887,1748109099484,-9905.5,0.00019342,2]
[362216888,1748109099494,-465.86961466,0.00019342,2]
[362216889,1748109099504,-420.0,0.00019342,2]
[362216890,1748109099514,-946.51,0.00019342,2]
[362216891,1748109099524,-344.613343,0.00019342,2]
[362216892,1748109099534,-908.96,0.00019342,2]
[362216893,1748109099544,-433.05815368,0.00019342,2]
[362216894,1748109099554,-671.36,0.00019342,2]
[362216895,1748109099563,-420.0,0.00019342,2]
[362216896,1748109099572,-12897.3,0.00019342,2]
[362216897,1748109099582,-448.92,0.00019342,2]
[362216898,1748109099592,-420.0,0.00019342,2]
[362216899,1748109099602,-420.0,0.00019342,2]
[362216900,1748109099612,-420.0,0.00019342,2]
[362216901,1748109099622,-420.0,0.00019342,2]
[362216902,1748109099632,-265.82024718,0.00019342,2]
[362216903,1748109099641,-784.21,0.00019342,2]
[362216904,1748109099650,-420.0,0.00019342,2]
[362216905,1748109099660,-420.0,0.00019342,2]
[362216906,1748109099669,-420.0,0.00019342,2]
[362216907,1748109099679,-420.0,0.00019342,2]
[362216908,1748109099689,-3828.19,0.00019342,2]
[362216909,1748109099698,-420.0,0.00019342,2]
[362216910,1748109099708,-420.0,0.00019342,2]
[362216911,1748109099718,-420.0,0.00019342,2]
[362216912,1748109099727,-420.0,0.00019342,2]
[362216913,1748109099737,-553.19,0.00019342,2]
[362216914,1748109099746,-420.0,0.00019342,2]
[362216915,1748109099755,-303.31832971,0.00019342,2]
[362216916,1748109099765,-420.0,0.00019342,2]
[362216917,1748109099774,-9974.47,0.00019342,2]
[362216918,1748109099783,-420.0,0.00019342,2]
[362216919,1748109099793,-420.0,0.00019342,2]
[362216920,1748109099802,-420.0,0.00019342,2]
[362216921,1748109099813,-458.55,0.00019342,2]
[362216922,1748109099824,-420.0,0.00019342,2]
[362216923,1748109099833,-420.0,0.00019342,2]
[362216924,1748109099843,-420.0,0.00019342,2]
[362216925,1748109099852,-3803.11,0.00019342,2]
[362216926,1748109099861,-420.0,0.00019342,2]
[362216927,1748109099870,-420.0,0.00019342,2]
[362216928,1748109099883,-420.0,0.00019342,2]
[362216929,1748109099894,-420.0,0.00019342,2]
[362216930,1748109099904,-420.0,0.00019342,2]
[362216931,1748109099914,-420.0,0.00019342,2]
[362216932,1748109099924,-420.0,0.00019342,2]
[362216933,1748109099933,-420.0,0.00019342,2]
[362216934,1748109099943,-443.51,0.00019342,2]
[362216935,1748109099953,-7438.76,0.00019342,2]
[362216936,1748109099963,-331.05564191,0.00019342,2]
[362216937,1748109099972,-5443.58,0.00019342,2]
[362216938,1748109099981,-688.39,0.00019342,2]
[362216939,1748109099991,-420.0,0.00019342,2]
[362216940,1748109100001,-687.96,0.00019342,2]
[362216941,1748109100010,-420.0,0.00019342,2]
[362216942,1748109100020,-549.03017397,0.00019342,2]
[362216943,1748109100029,-271.81845641,0.00019342,2]
[362216944,1748109100038,-420.0,0.00019342,2]
[362216945,1748109100047,-420.0,0.00019342,2]
[362216946,1748109100057,-3607.83,0.00019342,2]
[362216947,1748109100066,-758.62,0.00019342,2]
[362216948,1748109100076,-451.77,0.00019342,2]
[362216949,1748109100085,-420.0,0.00019342,2]
[362216950,1748109100095,-420.0,0.00019342,2]
[362216951,1748109100106,-420.0,0.00019342,2]
[362216952,1748109100115,-420.0,0.00019342,2]
[362216953,1748109100125,-420.0,0.00019342,2]
[362216954,1748109100135,-306.2428074,0.00019342,2]
[362216955,1748109100147,-420.0,0.00019342,2]
[362216956,1748109100156,-420.0,0.00019342,2]
[362216957,1748109100166,-420.0,0.00019342,2]
[362216958,1748109100176,-180.62410854,0.00019352,2]
[362216959,1748109100186,-420.0,0.00019369,2]
[362216960,1748109100195,-420.0,0.00019369,2]
[362216961,1748109100204,-420.0,0.00019369,2]
[362216962,1748109100213,-420.0,0.00019369,2]
[362216963,1748109100289,-420.0,0.00019369,2]
[362216964,1748109100299,-420.0,0.00019369,2]
[362216965,1748109100310,-420.0,0.00019369,2]
[362216966,1748109100321,-420.0,0.00019369,2]
[362216967,1748109100334,-420.0,0.00019369,2]
[362216968,1748109100343,-420.0,0.00019369,2]
[362216969,1748109100354,-420.0,0.00019369,2]
[362216970,1748109100363,-420.0,0.00019369,2]
[362216971,1748109100372,-420.0,0.00019369,2]
[362216972,1748109100381,-570.8,0.00019369,2]
[362216973,1748109100390,-420.0,0.00019369,2]
[362216974,1748109100399,-151.0,0.00019369,2]
[362216975,1748109100408,-420.0,0.00019369,2]
[362216976,1748109100417,-420.0,0.00019369,2]
[362216977,1748109100426,-420.0,0.00019369,2]
[362216978,1748109100435,-420.0,0.00019369,2]
[362216979,1748109100443,-420.0,0.00019369,2]
[362216980,1748109100452,-476.24126803,0.00019369,2]
[362216981,1748109100461,-420.0,0.00019369,2]
[362216982,1748109100470,-420.0,0.00019369,2]
[362216983,1748109100479,-420.0,0.00019369,2]
[362216984,1748109100488,-430.7903981,0.00019369,2]
[362216985,1748109100497,-420.0,0.00019369,2]
[362216986,1748109100506,-202.21167229,0.00019369,2]
[362216987,1748109100515,-420.0,0.00019369,2]
[362216988,1748109100525,-420.0,0.00019369,2]
[362216989,1748109100535,-420.0,0.00019369,2]
[362216990,1748109100544,-420.0,0.00019369,2]
[362216991,1748109100553,-420.0,0.00019369,2]
[362216992,1748109100562,-420.0,0.00019369,2]
[362216993,1748109100572,-425.13550726,0.00019369,2]
[362216994,1748109100581,-420.0,0.00019369,2]
[362216995,1748109100591,-420.0,0.00019369,2]
[362216996,1748109100599,-420.0,0.00019369,2]
[362216997,1748109100608,-780.83,0.00019369,2]
[362216998,1748109100617,-420.0,0.00019369,2]
[362216999,1748109100627,-221.21656737,0.00019369,2]
[362217000,1748109100637,-574.99,0.00019369,2]
[362217001,1748109100646,-420.0,0.00019369,2]
[362217002,1748109100655,-420.0,0.00019369,2]
[362217003,1748109100665,-540.08,0.00019369,2]
[362217004,1748109100674,-420.0,0.00019369,2]
[362217005,1748109100683,-164.55560173,0.00019369,2]
[362217006,1748109100693,-420.0,0.00019369,2]
[362217007,1748109100703,-420.0,0.00019369,2]
[362217008,1748109100712,-420.0,0.00019369,2]
[362217009,1748109100721,-420.0,0.00019369,2]
[362217010,1748109100731,-420.0,0.00019369,2]
[362217011,1748109100741,-455.1,0.00019369,2]
[362217012,1748109100750,-420.0,0.00019369,2]
[362217013,1748109100760,-226.75417437,0.00019369,2]
[362217014,1748109100770,-420.0,0.00019369,2]
[362217015,1748109100779,-420.0,0.00019369,2]
[362217016,1748109100789,-420.0,0.00019369,2]
[362217017,1748109100798,-1284.61,0.00019369,2]
[362217018,1748109100808,-560.44825089,0.00019369,2]
[362217019,1748109100818,-420.0,0.00019369,2]
[362217020,1748109100828,-420.0,0.00019369,2]
[362217021,1748109100837,-196.95829406,0.00019369,2]
[362217022,1748109100847,-420.0,0.00019369,2]
[362217023,1748109100856,-420.0,0.00019369,2]
[362217024,1748109100866,-420.0,0.00019369,2]
[362217025,1748109100875,-420.0,0.00019369,2]
[362217026,1748109100885,-420.0,0.00019369,2]
[362217027,1748109100895,-420.0,0.00019369,2]
[362217028,1748109100904,-420.0,0.00019369,2]
[362217029,1748109100913,-420.0,0.00019369,2]
[362217030,1748109100923,-420.0,0.00019369,2]
[362217031,1748109100933,-420.0,0.00019369,2]
[362217032,1748109100942,-420.0,0.00019369,2]
[362217033,1748109100952,-538.03890185,0.00019369,2]
[362217034,1748109100962,-420.0,0.00019369,2]
[362217035,1748109100971,-420.0,0.00019369,2]
[362217036,1748109100981,-420.0,0.00019369,2]
[362217037,1748109100991,-420.0,0.00019369,2]
[362217038,1748109101000,-420.0,0.00019369,2]
[362217039,1748109101009,-420.0,0.00019369,2]
[362217040,1748109101019,-420.0,0.00019369,2]
[362217041,1748109101029,-420.0,0.00019369,2]
[362217042,1748109101038,-420.0,0.00019369,2]
[362217043,1748109101047,-1656.56,0.00019369,2]
[362217044,1748109101057,-420.0,0.00019369,2]
[362217045,1748109101067,-420.0,0.00019369,2]
[362217046,1748109101076,-420.0,0.00019369,2]
[362217047,1748109101086,-436.01,0.00019369,2]
[362217048,1748109101096,-420.0,0.00019369,2]
[362217049,1748109101107,-420.0,0.00019369,2]
[362217050,1748109101116,-420.0,0.00019369,2]
[362217051,1748109101126,-420.0,0.00019369,2]
[362217052,1748109101136,-420.0,0.00019369,2]
[362217053,1748109101146,-420.0,0.00019369,2]
[362217054,1748109101157,-1934.37,0.00019369,2]
[362217055,1748109101172,-420.0,0.00019369,2]
[362217056,1748109101183,-420.0,0.00019369,2]
[362217057,1748109101193,-420.0,0.00019369,2]
[362217058,1748109101203,-420.0,0.00019369,2]
[362217059,1748109101213,-420.0,0.00019369,2]
[362217060,1748109101222,-420.0,0.00019369,2]
[362217061,1748109101231,-420.0,0.00019369,2]
[362217062,1748109101244,-507.06944261,0.00019369,2]
[362217063,1748109101255,-312.72911002,0.00019369,2]
[362217064,1748109101264,-385.84085052,0.00019369,2]
[362217065,1748109101274,-420.0,0.00019369,2]
[362217066,1748109101284,-454.46,0.00019369,2]
[362217067,1748109101294,-420.0,0.00019369,2]
[362217068,1748109101303,-2700.79,0.00019369,2]
[362217069,1748109101313,-420.0,0.00019369,2]
[362217070,1748109101323,-420.0,0.00019369,2]
[362217071,1748109101333,-420.0,0.00019369,2]
[362217072,1748109101344,-1701.02,0.00019369,2]
[362217073,1748109101354,-420.0,0.00019369,2]
[362217074,1748109101364,-420.0,0.00019369,2]
[362217075,1748109101374,-152.925138,0.00019369,2]
[362217076,1748109101384,-420.0,0.00019369,2]
[362217077,1748109101393,-420.0,0.00019369,2]
[362217078,1748109101403,-2340.16,0.00019369,2]
[362217079,1748109101413,-182.32970791,0.00019369,2]
[362217080,1748109101422,-420.0,0.00019369,2]
[362217081,1748109101432,-420.0,0.00019369,2]
[362217082,1748109101442,-420.0,0.00019369,2]
[362217083,1748109101451,-420.0,0.00019369,2]
[362217084,1748109101461,-420.0,0.00019369,2]
[362217085,1748109101471,-420.0,0.00019369,2]
[362217086,1748109101480,-420.0,0.00019369,2]
[362217087,1748109101490,-420.0,0.00019369,2]
[362217088,1748109101500,-420.0,0.00019369,2]
[362217089,1748109101510,-329.455551,0.00019369,2]
[362217090,1748109101520,-420.0,0.00019369,2]
[362217091,1748109101529,-420.0,0.00019369,2]
[362217092,1748109101538,-463.15,0.00019369,2]
[362217093,1748109101548,-420.0,0.00019369,2]
[362217094,1748109101558,-420.0,0.00019369,2]
[362217095,1748109101568,-420.0,0.00019369,2]
[362217096,1748109101579,-204.60019761,0.00019369,2]
[362217097,1748109101588,-489.7178713,0.00019369,2]
[362217098,1748109101598,-420.0,0.00019369,2]
[362217099,1748109101608,-682.24,0.00019369,2]
[362217100,1748109101618,-420.0,0.00019369,2]
[362217101,1748109101628,-420.0,0.00019369,2]
[362217102,1748109101637,-420.0,0.00019369,2]
[362217103,1748109101647,-420.0,0.00019369,2]
[362217104,1748109101657,-420.0,0.00019369,2]
[362217105,1748109101667,-689.69,0.00019369,2]
[362217106,1748109101677,-420.0,0.00019369,2]
[362217107,1748109101687,-420.0,0.00019369,2]
[362217108,1748109101698,-420.83820099,0.00019369,2]
[362217109,1748109101708,-420.0,0.00019369,2]
[362217110,1748109101718,-420.0,0.00019369,2]
[362217111,1748109101728,-440.89450536,0.00019369,2]
[362217112,1748109101739,-420.0,0.00019369,2]
[362217113,1748109101749,-420.0,0.00019369,2]
[362217114,1748109101759,-420.0,0.00019369,2]
[362217115,1748109101769,-562.44507246,0.00019369,2]
[362217116,1748109101779,-420.0,0.00019369,2]
[362217117,1748109101789,-420.0,0.00019369,2]
[362217118,1748109101799,-420.0,0.00019369,2]
[362217119,1748109101808,-420.0,0.00019369,2]
[362217120,1748109101819,-420.0,0.00019369,2]
[362217121,1748109101830,-420.0,0.00019369,2]
[362217122,1748109101840,-420.0,0.00019369,2]
[362217123,1748109101851,-420.0,0.00019369,2]
[362217124,1748109101863,-420.0,0.00019369,2]
[362217125,1748109101876,-420.0,0.00019369,2]
[362217126,1748109101887,-425.61,0.00019369,2]
[362217127,1748109101897,-444.52411165,0.00019369,2]
[362217128,1748109101907,-166.8550069,0.00019369,2]
[362217129,1748109101916,-420.0,0.00019369,2]
[362217130,1748109101926,-420.0,0.00019369,2]
[362217131,1748109101937,-420.0,0.00019369,2]
[362217132,1748109101948,-420.0,0.00019369,2]
[362217133,1748109101958,-420.0,0.00019369,2]
[362217134,1748109101969,-565.30924633,0.00019369,2]
[362217135,1748109101980,-256.3712651,0.00019369,2]
[362217136,1748109101991,-420.0,0.00019369,2]
[362217137,1748109102002,-420.0,0.00019369,2]
[362217138,1748109102011,-420.0,0.00019369,2]
[362217139,1748109102021,-420.0,0.00019369,2]
[362217140,1748109102031,-420.0,0.00019369,2]
[362217141,1748109102040,-420.0,0.00019369,2]
[362217142,1748109102051,-420.0,0.00019369,2]
[362217143,1748109102063,-420.0,0.00019369,2]
[362217144,1748109102073,-420.0,0.00019369,2]
[362217145,1748109102083,-1022.25,0.00019369,2]
[362217146,1748109102093,-463.91,0.00019369,2]
[362217147,1748109102104,-7257.56,0.00019369,2]
[362217148,1748109102116,-420.0,0.00019369,2]
[362217149,1748109102127,-443.46,0.00019369,2]
[362217150,1748109102137,-250.0,0.00019369,2]
[362217151,1748109102147,-420.0,0.00019369,2]
[362217152,1748109102156,-420.0,0.00019369,2]
[362217153,1748109102167,-17506.37,0.00019369,2]
[362217154,1748109102177,-420.0,0.00019369,2]
[362217155,1748109102186,-424.09,0.00019369,2]
[362217156,1748109102196,-420.0,0.00019369,2]
[362217157,1748109102205,-420.0,0.00019369,2]
[362217158,1748109102215,-1778.25,0.00019369,2]
[362217159,1748109102225,-420.0,0.00019369,2]
[362217160,1748109102235,-420.0,0.00019369,2]
[362217161,1748109102247,-420.0,0.00019369,2]
[362217162,1748109102256,-2104.45,0.00019369,2]
[362217163,1748109102266,-1661.53,0.00019369,2]
[362217164,1748109102275,-214.2216068,0.00019369,2]
[362217165,1748109102284,-420.0,0.00019369,2]
[362217166,1748109102295,-539.45,0.00019369,2]
[362217167,1748109102305,-556.94085314,0.00019369,2]
[362217168,1748109102314,-420.0,0.00019369,2]
[362217169,1748109102325,-420.0,0.00019369,2]
[362217170,1748109102335,-132535.19511274,0.00019369,2]
[362217171,1748109102864,-19162.49560774,0.00019369,2]
[362217172,1748109102878,-95480.05927952,0.00019369,2]
[362217173,1748109102888,-5399.91,0.00019369,2]
[362217174,1748109102897,-420.0,0.00019369,2]
[362217175,1748109102907,-489.06,0.00019369,2]
[362217176,1748109102916,-3466.19,0.00019369,2]
[362217177,1748109102925,-420.0,0.00019369,2]
[362217178,1748109102935,-165.68226828,0.00019369,2]
[362217179,1748109102944,-420.0,0.00019369,2]
[362217180,1748109102954,-420.0,0.00019369,2]
[362217181,1748109102963,-178.63368992,0.00019369,2]
[362217182,1748109102973,-3163.06,0.00019369,2]
[362217183,1748109102983,-1653.38,0.00019369,2]
[362217184,1748109102992,-420.0,0.00019369,2]
[362217185,1748109103002,-420.0,0.00019369,2]
[362217186,1748109103011,-420.0,0.00019369,2]
[362217187,1748109103020,-420.0,0.00019369,2]
[362217188,1748109103030,-3018.52,0.00019369,2]
[362217189,1748109103039,-420.0,0.00019369,2]
[362217190,1748109103049,-3197.4,0.00019369,2]
[362217191,1748109103059,-420.0,0.00019369,2]
[362217192,1748109103069,-420.0,0.00019369,2]
[362217193,1748109103079,-508.31,0.00019369,2]
[362217194,1748109103088,-420.0,0.00019369,2]
[362217195,1748109103098,-7674.63,0.00019369,2]
[362217196,1748109103108,-420.0,0.00019369,2]
[362217197,1748109103117,-420.0,0.00019369,2]
[362217198,1748109103127,-420.0,0.00019369,2]
[362217199,1748109103137,-1467.56,0.00019369,2]
[362217200,1748109103146,-420.0,0.00019369,2]
[362217201,1748109103327,-420.0,0.00019369,2]
[362217202,1748109103337,-420.0,0.00019369,2]
[362217203,1748109103347,-734.7,0.00019369,2]
[362217204,1748109103356,-3712.64,0.00019369,2]
[362217205,1748109103365,-420.0,0.00019369,2]
[362217206,1748109103375,-420.0,0.00019369,2]
[362217207,1748109103384,-420.0,0.00019369,2]
[362217208,1748109103393,-420.0,0.00019369,2]
[362217209,1748109103403,-420.0,0.00019369,2]
[362217210,1748109103413,-420.0,0.00019369,2]
[362217211,1748109103422,-420.0,0.00019369,2]
[362217212,1748109103432,-7219.46,0.00019369,2]
[362217213,1748109103442,-420.0,0.00019369,2]
[362217214,1748109103451,-420.0,0.00019369,2]
[362217215,1748109103460,-420.0,0.00019369,2]
[362217216,1748109103469,-420.0,0.00019369,2]
[362217217,1748109103479,-420.0,0.00019369,2]
[362217218,1748109103488,-368.20369861,0.00019369,2]
[362217219,1748109103498,-900.33611659,0.00019369,2]
[362217220,1748109103513,-106.93388341,0.00019369,2]
[362217221,1748109103522,-420.0,0.00019369,2]
[362217222,1748109103531,-420.0,0.00019369,2]
[362217223,1748109103542,-420.0,0.00019369,2]
[362217224,1748109103553,-420.0,0.00019369,2]
[362217225,1748109103562,-546.3418914,0.00019369,2]
[362217226,1748109103572,-420.0,0.00019369,2]
[362217227,1748109103582,-786.02,0.00019369,2]
[362217228,1748109103591,-420.0,0.00019369,2]
[362217229,1748109103600,-2801.9,0.00019369,2]
[362217230,1748109103610,-9905.5,0.00019369,2]
[362217231,1748109103620,-420.0,0.00019369,2]
[362217232,1748109103630,-946.51,0.00019369,2]
[362217233,1748109103641,-908.96,0.00019369,2]
[362217234,1748109103650,-671.36,0.00019369,2]
[362217235,1748109103660,-420.0,0.00019369,2]
[362217236,1748109103669,-12897.3,0.00019369,2]
[362217237,1748109103678,-448.92,0.00019369,2]
[362217238,1748109103688,-420.0,0.00019369,2]
[362217239,1748109103698,-420.0,0.00019369,2]
[362217240,1748109103707,-420.0,0.00019369,2]
[362217241,1748109103716,-420.0,0.00019369,2]
[362217242,1748109103726,-784.21,0.00019369,2]
[362217243,1748109103736,-420.0,0.00019369,2]
[362217244,1748109103745,-420.0,0.00019369,2]
[362217245,1748109103755,-420.0,0.00019369,2]
[362217246,1748109103766,-420.0,0.00019369,2]
[362217247,1748109103775,-3828.19,0.00019369,2]
[362217248,1748109103785,-420.0,0.00019369,2]
[362217249,1748109103795,-420.0,0.00019369,2]
[362217250,1748109103805,-420.0,0.00019369,2]
[362217251,1748109103814,-420.0,0.00019369,2]
[362217252,1748109103824,-553.19,0.00019369,2]
[362217253,1748109103834,-420.0,0.00019369,2]
[362217254,1748109103843,-420.0,0.00019369,2]
[362217255,1748109103853,-9974.47,0.00019369,2]
[362217256,1748109103863,-420.0,0.00019369,2]
[362217257,1748109103873,-420.0,0.00019369,2]
[362217258,1748109103883,-420.0,0.00019369,2]
[362217259,1748109103892,-458.55,0.00019369,2]
[362217260,1748109103901,-420.0,0.00019369,2]
[362217261,1748109103910,-420.0,0.00019369,2]
[362217262,1748109103919,-438.9113375,0.00019369,2]
[362217263,1748109103929,-3803.11,0.00019369,2]
[362217264,1748109103938,-420.0,0.00019369,2]
[362217265,1748109103949,-420.0,0.00019369,2]
[362217266,1748109103959,-420.0,0.00019369,2]
[362217267,1748109103968,-420.0,0.00019369,2]
[362217268,1748109103980,-420.0,0.00019369,2]
[362217269,1748109103989,-420.0,0.00019369,2]
[362217270,1748109103999,-420.0,0.00019369,2]
[362217271,1748109104009,-420.0,0.00019369,2]
[362217272,1748109104018,-443.51,0.00019369,2]
[362217273,1748109104027,-7438.76,0.00019369,2]
[362217274,1748109104037,-5443.58,0.00019369,2]
[362217275,1748109104046,-688.39,0.00019369,2]
[362217276,1748109104056,-687.96,0.00019369,2]
[362217277,1748109104065,-420.0,0.00019369,2]
[362217278,1748109104075,-420.0,0.00019369,2]
[362217279,1748109104085,-420.0,0.00019369,2]
[362217280,1748109104095,-420.0,0.00019369,2]
[362217281,1748109104105,-3607.83,0.00019369,2]
[362217282,1748109104115,-758.62,0.00019369,2]
[362217283,1748109104125,-451.77,0.00019369,2]
[362217284,1748109104135,-420.0,0.00019369,2]
[362217285,1748109104146,-420.0,0.00019369,2]
[362217286,1748109104155,-420.0,0.00019369,2]
[362217287,1748109104164,-420.0,0.00019369,2]
[362217288,1748109104174,-420.0,0.00019369,2]
[362217289,1748109104184,-420.0,0.00019369,2]
[362217290,1748109104194,-420.0,0.00019369,2]
[362217291,1748109104204,-420.0,0.00019369,2]
[362217292,1748109104213,-157.86821583,0.00019373,2]
[362217293,1748109104224,-159.4117376,0.00019373,2]
[362217294,1748109104235,-159.3861888,0.00019373,2]
[362217295,1748109104248,-1138.27326013,0.00019397,2]
[362217296,1748109104258,-521.16382399,0.00019397,2]
[362217297,1748109104268,-516.68914576,0.00019397,2]